bitfinex/quotes_SOLUSD_20240718
["timestamp","ask_amount","ask_price","bid_price","bid_amount"]
[1721334245702,12.4,157.45,157.41,0.3273]
[1721334246017,12.4,157.45,157.43,0.3273]
[1721334246532,1.58783483,157.48,157.45,0.3273]
[1721334246697,17.0168036,157.5,157.45,0.3273]
[1721334246698,12.4,157.49,157.45,0.3273]
[1721334246900,12.4,157.46,157.44,0.34]
[1721334247801,12.4,157.47,157.45,0.3273]
[1721334254803,6.3524,157.42,157.41,9.53696575]
[1721334255129,6.3533,157.4,157.34,9.86426575]
[1721334255294,12.4,157.36,157.33,9.53696575]
[1721334255502,12.4,157.34,157.32,9.86426575]
[1721334255808,12.4,157.35,157.34,0.3273]
[1721334256021,12.4,157.36,157.34,0.3273]
[1721334256219,13.98879209,157.35,157.32,0.3273]
[1721334256408,12.4,157.33,157.32,0.3273]
[1721334256921,12.4,157.34,157.3,9.86426575]
[1721334257112,12.4,157.33,157.3,9.86426575]
[1721334257314,12.4,157.33,157.3,9.87038347]
[1721334257710,12.4,157.33,157.3,0.3273]
[1721334258204,1.58884819,157.36,157.34,0.3273]
[1721334258403,12.4,157.37,157.34,0.3273]
[1721334258803,12.4,157.37,157.33,0.17]
[1721334259025,12.4,157.36,157.33,0.34]
[1721334260216,13.98871219,157.35,157.31,9.54308347]
[1721334260417,12.4,157.32,157.28,9.87075925]
[1721334260617,12.4,157.31,157.28,9.87075925]
[1721334260921,12.4,157.31,157.28,0.3273]
[1721334261119,12.4,157.3,157.28,0.3273]
[1721334261627,1.58871219,157.35,157.28,0.3273]
[1721334261815,12.4,157.31,157.28,0.3273]
[1721334262224,12.4,157.3,157.28,0.3273]
[1721334262933,1.58871219,157.35,157.28,0.3273]
[1721334262934,12.4,157.31,157.28,0.3273]
[1721334263115,12.4,157.3,157.28,0.3273]
[1721334264049,12.4,157.31,157.28,0.3273]
[1721334264203,12.4,157.3,157.28,0.3273]
[1721334265010,12.4,157.31,157.28,0.3273]
[1721334265211,12.4,157.3,157.28,0.3273]
[1721334265932,12.4,157.31,157.28,0.3273]
[1721334266135,12.4,157.3,157.28,0.3273]
[1721334266639,12.4,157.3,157.26,20.3273]
[1721334266945,12.4,157.3,157.27,0.34]
[1721334267115,12.4,157.29,157.27,0.34]
[1721334267434,12.4,157.29,157.26,20.3273]
[1721334267640,12.4,157.29,157.26,0.3273]
[1721334267934,12.4,157.29,157.24,0.3273]
[1721334268127,13.9896678,157.28,157.24,0.3273]
[1721334268436,12.4,157.28,157.24,0.3273]
[1721334268743,1.58966718,157.31,157.26,0.3273]
[1721334268744,12.4,157.29,157.26,0.3273]
[1721334269048,12.4,157.3,157.26,0.3273]
[1721334269222,12.4,157.28,157.26,0.3273]
[1721334269531,21.1395,157.34,157.22,0.3273]
[1721334269532,12.4,157.27,157.22,0.3273]
[1721334269707,12.4,157.27,157.23,0.34]
[1721334270215,1.58968452,157.32,157.23,0.34]
[1721334270216,12.4,157.26,157.23,0.3273]
[1721334272133,7.9477624,157.29,157.23,0.3273]
[1721334272311,60.8907,157.33,157.23,0.3273]
[1721334272312,12.4,157.26,157.23,0.3273]
[1721334272513,12.4,157.28,157.25,0.3273]
[1721334273126,1.58986106,157.3,157.25,0.3273]
[1721334273326,12.4,157.3,157.27,0.3273]
[1721334273647,12.4,157.31,157.27,0.3273]
[1721334273821,12.4,157.31,157.27,1.59888639]
[1721334274437,1.58948299,157.33,157.29,0.3273]
[1721334274643,12.4,157.32,157.29,0.3273]
[1721334275051,1.58928481,157.33,157.29,0.3273]
[1721334275052,13.98928481,157.33,157.29,0.3273]
[1721334275220,1.58928152,157.32,157.29,0.3273]
[1721334275660,12.4,157.31,157.29,0.3273]
[1721334276351,12.4,157.31,157.27,0.3273]
[1721334277062,1.58928152,157.32,157.26,12.74]
[1721334277063,13.98933123,157.3,157.26,0.34]
[1721334277256,12.4,157.3,157.27,0.17]
[1721334277965,12.4,157.3,157.26,0.34]
[1721334280275,12.4,157.27,157.23,0.3273]
[1721334280473,12.4,157.26,157.23,0.3273]
[1721334280784,12.4,157.26,157.21,12.7273]
[1721334281581,12.4,157.26,157.22,45.34]
[1721334281776,12.4,157.26,157.22,45.17]
[1721334282992,12.4,157.26,157.23,0.17]
[1721334284571,1.58977752,157.27,157.23,0.17]
[1721334284773,12.4,157.26,157.23,0.17]
[1721334286393,13.98991881,157.25,157.22,0.17]
[1721334286596,13.98991881,157.25,157.22,0.34]
[1721334286801,12.4,157.25,157.22,0.34]
[1721334287403,1.58988273,157.28,157.24,0.3273]
[1721334287702,12.4,157.27,157.24,0.3273]
[1721334289508,12.4,157.26,157.24,0.3273]
[1721334290183,12.4,157.25,157.24,0.3273]
[1721334290597,12.4,157.26,157.24,0.3273]
[1721334291603,12.4,157.26,157.22,0.6673]
[1721334291604,1.58981915,157.25,157.22,0.6673]
[1721334291782,12.4,157.24,157.22,0.4973]
[1721334294407,1.58997598,157.27,157.22,0.4973]
[1721334294713,12.4,157.24,157.22,0.4973]
[1721334296502,12.4,157.25,157.22,0.4973]
[1721334297100,12.4,157.24,157.22,0.4973]
[1721334297301,12.4,157.25,157.22,0.4973]
[1721334300404,13.98992484,157.24,157.2,29.87544848]
[1721334300595,12.4,157.24,157.21,9.54814848]
[1721334300790,12.4,157.24,157.22,0.3273]
[1721334300988,12.4,157.25,157.22,0.3273]
[1721334301223,1.5900398,157.24,157.22,9.87539962]
[1721334301389,1.5900398,157.24,157.22,0.3273]
[1721334301908,1.5900398,157.24,157.22,9.87539902]
[1721334302124,1.59004219,157.28,157.25,0.3273]
[1721334302296,12.4,157.27,157.23,10.21539902]
[1721334302492,12.4,157.27,157.23,0.6673]
[1721334302891,12.4,157.26,157.23,0.6673]
[1721334303819,12.4,157.26,157.23,0.3273]
[1721334304912,12.4,157.26,157.23,9.87516748]
[1721334305107,12.4,157.26,157.25,0.3273]
[1721334306292,12.4,157.26,157.23,9.87516748]
[1721334307209,12.4,157.26,157.23,0.3273]
[1721334307517,12.4,157.26,157.23,9.87488115]
[1721334307698,12.4,157.26,157.25,0.3273]
[1721334307899,1.58975237,157.32,157.29,0.3273]
[1721334308208,12.4,157.32,157.28,0.17]
[1721334308407,1.58935923,157.31,157.28,20.17]
[1721334308619,12.4,157.32,157.28,20.17]
[1721334309010,1.58932594,157.31,157.29,0.3273]
[1721334312036,12.4,157.33,157.29,0.3273]
[1721334312222,1.58928328,157.32,157.29,0.3273]
[1721334319527,12.4,157.31,157.26,12.4]
[1721334319839,1.58956769,157.3,157.27,20.0]
[1721334320044,1.58956769,157.3,157.25,6.3765]
[1721334320045,1.58957156,157.29,157.25,18.7765]
[1721334320219,1.58957156,157.29,157.25,12.7273]
[1721334320635,1.58957156,157.29,157.25,0.3273]
[1721334320838,1.58957156,157.29,157.25,12.7273]
[1721334322042,1.58957156,157.29,157.25,13.9989656]
[1721334322229,1.58957084,157.3,157.25,12.7273]
[1721334322430,1.58958177,157.29,157.25,13.99896542]
[1721334323458,1.5895828,157.3,157.25,13.99896542]
[1721334323747,1.58958269,157.29,157.25,13.99896542]
[1721334324637,1.58958294,157.3,157.25,13.99896542]
[1721334324934,1.5895838,157.29,157.25,13.99896542]
[1721334325557,1.5895838,157.29,157.25,0.3273]
[1721334325739,1.58961749,157.3,157.25,12.7273]
[1721334325943,1.58959379,157.29,157.25,12.7273]
[1721334332948,1.58959379,157.29,157.25,13.99896654]
[1721334333162,1.58959379,157.29,157.25,12.7273]
[1721334333666,1.58959379,157.29,157.25,13.99896759]
[1721334335561,1.58958452,157.29,157.25,13.99896759]
[1721334335864,12.4,157.3,157.25,23.54545307]
[1721334336041,1.58957803,157.29,157.25,13.99896759]
[1721334337960,12.4,157.3,157.25,13.99896759]
[1721334338264,1.58957395,157.29,157.25,13.99896759]
[1721334338467,12.4,157.3,157.25,13.99896759]
[1721334338765,1.58955759,157.29,157.25,13.99896759]
[1721334338964,13.98956305,157.32,157.27,0.3273]
[1721334339265,1.58940335,157.33,157.29,0.3273]
[1721334339452,12.4,157.34,157.29,12.7273]
[1721334339652,1.58920262,157.33,157.29,12.7273]
[1721334340067,13.98920262,157.33,157.29,0.3273]
[1721334340245,1.58920314,157.32,157.29,0.3273]
[1721334342648,12.4,157.34,157.29,13.99865861]
[1721334342858,1.58919864,157.33,157.29,13.99865861]
[1721334343250,1.58919868,157.34,157.31,0.3273]
[1721334343866,12.4,157.35,157.31,0.3273]
[1721334344170,1.58908631,157.34,157.31,0.3273]
[1721334345448,1.58909785,157.36,157.33,0.3273]
[1721334345665,12.4,157.38,157.35,0.3273]
[1721334345978,12.4,157.39,157.35,0.3273]
[1721334346163,1.58876536,157.38,157.35,0.3273]
[1721334346351,13.98876536,157.39,157.35,0.3273]
[1721334346952,1.58876536,157.39,157.35,12.7273]
[1721334349085,13.98876536,157.39,157.35,0.3273]
[1721334349252,1.58862545,157.41,157.38,0.3273]
[1721334349450,12.4,157.43,157.38,12.7273]
[1721334349666,1.58829919,157.42,157.38,12.7273]
[1721334350363,1.58829923,157.43,157.39,12.4]
[1721334350560,12.4,157.44,157.39,12.4]
[1721334350775,1.58823127,157.43,157.39,12.4]
[1721334350970,1.58823127,157.43,157.4,0.3273]
[1721334351182,1.58823127,157.43,157.4,12.7273]
[1721334351490,12.4,157.43,157.4,0.3273]
[1721334351788,1.58819311,157.42,157.4,0.3273]
[1721334352883,1.58819315,157.43,157.4,0.3273]
[1721334354386,1.5881932,157.42,157.38,12.7273]
[1721334355275,1.5881932,157.42,157.36,0.4973]
[1721334355471,1.5881932,157.42,157.36,0.3273]
[1721334355472,12.4,157.4,157.36,0.3273]
[1721334355672,1.58853812,157.39,157.36,20.3273]
[1721334356286,1.58853812,157.39,157.34,0.3273]
[1721334356475,1.58853812,157.39,157.34,12.7273]
[1721334356677,13.98853812,157.39,157.36,0.3273]
[1721334356987,12.4,157.39,157.36,0.3273]
[1721334357195,12.4,157.41,157.38,0.3273]
[1721334357370,13.98853526,157.42,157.38,0.3273]
[1721334357571,1.58839223,157.41,157.38,0.3273]
[1721334358991,1.58836311,157.42,157.38,0.3273]
[1721334359875,13.98836311,157.42,157.38,0.3273]
[1721334360201,13.98839411,157.41,157.38,0.3273]
[1721334360378,12.4,157.42,157.38,0.3273]
[1721334360568,1.58838141,157.41,157.38,0.3273]
[1721334362197,1.58838141,157.41,157.37,0.17]
[1721334362901,12.4,157.4,157.36,0.3273]
[1721334363195,1.58853724,157.39,157.36,0.3273]
[1721334363404,1.58853724,157.39,157.35,12.74]
[1721334363571,1.58853724,157.39,157.35,12.4]
[1721334363773,1.58853724,157.39,157.36,0.3273]
[1721334370695,12.4,157.4,157.36,0.3273]
[1721334373514,1.58861381,157.39,157.36,0.3273]
[1721334375392,13.98861381,157.39,157.36,0.3273]
[1721334375590,12.4,157.37,157.32,16.3737]
[1721334375793,1.58880185,157.36,157.32,16.3737]
[1721334375997,1.58880185,157.36,157.32,28.7737]
[1721334376199,13.98880185,157.36,157.32,16.3737]
[1721334376394,1.58889412,157.35,157.32,16.3737]
[1721334376697,12.4,157.36,157.32,16.3737]
[1721334376910,1.58888654,157.35,157.32,16.3737]
[1721334377294,12.4,157.37,157.32,30.04480894]
[1721334377495,1.58887436,157.36,157.32,28.7737]
[1721334377692,13.98887436,157.36,157.32,16.3737]
[1721334377994,12.4,157.36,157.32,16.3737]
[1721334379395,12.4,157.34,157.31,0.17]
[1721334379592,1.58903832,157.33,157.3,0.3273]
[1721334380305,13.98903832,157.33,157.3,0.3273]
[1721334380505,12.4,157.33,157.3,0.3273]
[1721334380892,12.4,157.35,157.3,12.7273]
[1721334381102,1.58908889,157.34,157.3,13.99857111]
[1721334382722,12.4,157.35,157.32,0.3273]
[1721334383197,1.58910037,157.38,157.34,0.3273]
[1721334383400,12.4,157.36,157.32,0.3273]
[1721334383698,12.4,157.37,157.34,0.3273]
[1721334383904,13.98872904,157.4,157.36,0.3273]
[1721334384115,21.9232,157.45,157.38,0.3273]
[1721334384116,1.58857765,157.42,157.38,0.3273]
[1721334384420,13.98857765,157.42,157.38,0.3273]
[1721334384622,12.4,157.41,157.38,0.3273]
[1721334384796,1.58840556,157.4,157.38,0.3273]
[1721334385918,1.58840556,157.4,157.36,12.7273]
[1721334386513,13.98840556,157.4,157.36,0.3273]
[1721334386824,12.4,157.41,157.38,0.3273]
[1721334388030,13.9884011,157.43,157.38,0.3273]
[1721334388236,1.58826432,157.42,157.38,0.3273]
[1721334389928,13.98824944,157.43,157.4,0.3273]
[1721334390103,12.4,157.43,157.4,0.3273]
[1721334390303,1.58819075,157.42,157.4,0.3273]
[1721334391310,13.98819075,157.42,157.38,0.3273]
[1721334391513,1.58826421,157.41,157.38,0.3273]
[1721334391906,12.4,157.42,157.38,0.3273]
[1721334393421,1.5882647,157.41,157.38,0.3273]
[1721334394000,12.4,157.42,157.38,0.3273]
[1721334394328,1.58826328,157.48,157.37,45.34]
[1721334394329,13.98826202,157.43,157.4,0.3273]
[1721334394633,1.58816585,157.42,157.4,0.3273]
[1721334394803,12.4,157.43,157.4,0.3273]
[1721334397108,1.5881804,157.44,157.4,0.3273]
[1721334397315,12.4,157.45,157.4,12.7273]
[1721334397520,1.58805568,157.44,157.4,12.7273]
[1721334398210,12.4,157.45,157.4,12.7273]
[1721334398419,1.58805642,157.44,157.4,12.7273]
[1721334401131,1.58805642,157.44,157.42,0.3273]
[1721334403836,1.58805642,157.44,157.4,0.3273]
[1721334404015,13.98805642,157.44,157.4,0.3273]
[1721334404207,1.58805211,157.46,157.4,0.3273]
[1721334404423,1.58805212,157.46,157.42,12.7273]
[1721334404732,12.4,157.48,157.43,12.4]
[1721334404938,1.58786814,157.47,157.43,12.4]
[1721334405107,2.40355615,157.5,157.46,0.3273]
[1721334405307,14.80355615,157.5,157.46,0.3273]
[1721334406033,0.8157036,157.5,157.47,12.4]
[1721334406726,0.8157036,157.5,157.48,0.3273]
[1721334407431,0.8157036,157.5,157.48,1.5972113]
[1721334410451,0.8157036,157.5,157.46,0.3273]
[1721334410812,14.80318555,157.5,157.46,0.3273]
[1721334413232,2.40318555,157.5,157.46,0.3273]
[1721334413535,14.80318555,157.5,157.46,0.3273]
[1721334414040,2.40318555,157.5,157.46,12.7273]
[1721334414622,0.8157036,157.5,157.48,0.3273]
[1721334417339,0.8157036,157.5,157.49,12.4]
[1721334417531,0.8157036,157.5,157.49,57.74]
[1721334418648,0.8157036,157.5,157.49,79.7299]
[1721334419217,0.8157036,157.5,157.49,22.3299]
[1721334419436,0.8157036,157.5,157.49,34.5599]
[1721334419626,0.8157036,157.5,157.49,79.7299]
[1721334419826,0.8157036,157.5,157.49,15.3982]
[1721334420830,0.8157036,157.5,157.48,0.3273]
[1721334422532,0.8157036,157.5,157.49,0.17]
[1721334422729,0.8157036,157.5,157.49,0.34]
[1721334423255,0.8157036,157.5,157.49,14.00971998]
[1721334423426,0.8157036,157.5,157.49,74.21241998]
[1721334423624,0.8157036,157.5,157.49,72.9427]
[1721334424939,0.8157036,157.5,157.49,79.2758]
[1721334425148,0.8157036,157.5,157.49,66.8758]
[1721334425327,0.8157036,157.5,157.49,99.2758]
[1721334427346,0.8157036,157.5,157.49,100.54515504]
[1721334427552,0.8157036,157.5,157.49,107.81279315]
[1721334429433,0.8157036,157.5,157.49,106.54343811]
[1721334429852,0.8157036,157.5,157.49,107.8127222]
[1721334430058,1.68659376,157.61,157.57,0.3273]
[1721334430232,12.4,157.6,157.57,0.3273]
[1721334430548,13.98651851,157.59,157.57,0.3273]
[1721334430751,12.4,157.59,157.57,0.3273]
[1721334431545,1.6865165,157.61,157.57,0.3273]
[1721334431731,12.4,157.59,157.57,0.3273]
[1721334431935,12.4,157.59,157.56,0.17]
[1721334432658,12.4,157.6,157.57,0.3273]
[1721334433968,12.4,157.59,157.57,0.3273]
[1721334436837,13.98650151,157.58,157.52,0.3273]
[1721334437061,12.4,157.54,157.52,0.3273]
[1721334437260,12.4,157.55,157.52,0.3273]
[1721334437555,12.4,157.56,157.52,0.3273]
[1721334437856,13.98684995,157.55,157.52,0.3273]
[1721334438070,12.4,157.56,157.52,0.3273]
[1721334439170,12.4,157.56,157.54,0.3273]
[1721334439462,13.98687514,157.58,157.54,0.3273]
[1721334439636,1.58670406,157.57,157.54,0.3273]
[1721334439846,12.4,157.56,157.52,0.3273]
[1721334440063,1.58686433,157.55,157.52,0.3273]
[1721334440244,12.4,157.56,157.54,0.3273]
[1721334440759,12.4,157.56,157.52,0.3273]
[1721334440949,1.58682325,157.55,157.52,0.3273]
[1721334441346,12.4,157.54,157.52,0.3273]
[1721334441837,13.98694749,157.57,157.54,0.3273]
[1721334442244,12.4,157.57,157.54,0.3273]
[1721334442853,13.98682248,157.56,157.52,0.3273]
[1721334443064,12.4,157.56,157.52,0.3273]
[1721334443445,1.5868253,157.55,157.52,0.3273]
[1721334443954,12.4,157.56,157.54,0.3273]
[1721334445067,12.4,157.56,157.52,0.3273]
[1721334445273,13.98676516,157.55,157.52,0.3273]
[1721334445574,12.4,157.55,157.52,0.3273]
[1721334447073,12.4,157.55,157.49,31.06335262]
[1721334447074,12.4,157.53,157.48,12.7273]
[1721334447270,12.4,157.53,157.5,0.3273]
[1721334447774,13.98694358,157.54,157.5,1.59696695]
[1721334447977,12.4,157.54,157.5,1.59696695]
[1721334448165,1.58706343,157.56,157.51,12.4]
[1721334448353,1.58706343,157.56,157.52,12.7273]
[1721334448549,13.98706343,157.56,157.52,0.3273]
[1721334448766,12.4,157.56,157.54,0.3273]
[1721334448974,13.98683489,157.55,157.52,0.3273]
[1721334449175,12.4,157.55,157.52,0.3273]
[1721334450254,12.4,157.55,157.52,9.85580328]
[1721334450886,12.4,157.53,157.52,9.52850328]
[1721334452278,12.4,157.53,157.5,0.3273]
[1721334452572,12.4,157.53,157.52,9.52760838]
[1721334452759,12.4,157.54,157.52,9.5272951]
[1721334452963,1.58709984,157.53,157.52,9.5272951]
[1721334453157,12.4,157.54,157.51,9.52702662]
[1721334453368,13.98711562,157.53,157.51,9.52702662]
[1721334453550,12.4,157.53,157.51,9.52702662]
[1721334454478,12.4,157.53,157.5,9.52702662]
[1721334454860,12.4,157.53,157.5,9.85432662]
[1721334455052,12.4,157.51,157.5,9.52702662]
[1721334455251,6.3479,157.54,157.47,9.85432662]
[1721334455450,12.4,157.49,157.47,0.3273]
[1721334455669,7.93544029,157.53,157.47,9.86172647]
[1721334455875,7.93544029,157.53,157.47,0.3273]
[1721334455876,12.4,157.49,157.47,0.3273]
[1721334456178,12.4,157.49,157.46,9.53442647]
[1721334456364,12.4,157.49,157.45,24.92302647]
[1721334456564,12.4,157.49,157.46,0.17]
[1721334456766,12.4,157.48,157.45,9.53442647]
[1721334457154,12.4,157.48,157.44,10.20172647]
[1721334457478,12.4,157.48,157.45,0.17]
[1721334458473,1.58755796,157.51,157.44,9.53442647]
[1721334458474,13.98753907,157.47,157.44,9.53442647]
[1721334458776,12.4,157.45,157.42,0.3273]
[1721334458960,12.4,157.44,157.42,0.3273]
[1721334459163,12.4,157.45,157.42,0.3273]
[1721334459983,12.4,157.44,157.42,0.3273]
[1721334460479,12.4,157.44,157.39,21.93754102]
[1721334460685,12.4,157.44,157.4,45.4973]
[1721334460978,12.4,157.44,157.42,0.3273]
[1721334461778,12.4,157.44,157.4,45.4973]
[1721334462086,12.4,157.43,157.41,0.17]
[1721334462555,12.4,157.43,157.42,0.3273]
[1721334462883,1.58793479,157.48,157.42,0.3273]
[1721334462884,12.4,157.44,157.42,0.3273]
[1721334463754,12.4,157.44,157.41,0.17]
[1721334464177,12.4,157.44,157.42,0.3273]
[1721334464381,1.58795242,157.49,157.42,0.3273]
[1721334464559,12.4,157.45,157.42,0.3273]
[1721334465563,12.4,157.44,157.42,0.3273]
[1721334468398,12.4,157.43,157.42,0.3273]
[1721334469788,12.4,157.43,157.41,0.17]
[1721334471487,12.4,157.43,157.42,0.3273]
[1721334473090,12.4,157.43,157.41,0.17]
[1721334473266,12.4,157.43,157.4,0.34]
[1721334473589,12.4,157.43,157.4,0.17]
[1721334474580,12.4,157.43,157.41,0.3273]
[1721334476099,12.4,157.44,157.41,0.3273]
[1721334478277,12.4,157.43,157.41,0.3273]
[1721334481987,1.58800943,157.47,157.41,0.3273]
[1721334481988,12.4,157.44,157.41,0.3273]
[1721334482905,12.4,157.44,157.43,0.3273]
[1721334484390,12.4,157.44,157.4,0.4973]
[1721334484599,12.4,157.41,157.38,0.3273]
[1721334484805,12.4,157.41,157.39,0.17]
[1721334485105,13.98826311,157.4,157.38,0.3273]
[1721334485313,12.4,157.39,157.36,0.3273]
[1721334485516,1.58841551,157.43,157.36,0.3273]
[1721334485517,12.4,157.38,157.36,0.3273]
[1721334486593,12.4,157.38,157.35,0.3273]
[1721334487292,12.4,157.38,157.36,0.17]
[1721334487492,12.4,157.37,157.33,6.94087979]
[1721334487821,12.4,157.36,157.33,6.94087979]
[1721334488720,12.4,157.36,157.33,0.3273]
[1721334489017,12.4,157.36,157.34,0.34]
[1721334489222,12.4,157.35,157.34,0.34]
[1721334489919,12.4,157.35,157.31,13.01871898]
[1721334490116,12.4,157.35,157.34,0.3273]
[1721334490294,1.58877004,157.39,157.34,0.4973]
[1721334490614,12.4,157.36,157.34,0.3273]
[1721334490816,12.4,157.35,157.32,0.3273]
[1721334491119,12.4,157.35,157.33,0.34]
[1721334492003,12.4,157.35,157.31,0.3273]
[1721334492302,12.4,157.35,157.33,0.3273]
[1721334492817,12.4,157.36,157.33,0.3273]
[1721334493117,12.4,157.35,157.33,0.3273]
[1721334493416,12.4,157.36,157.33,0.3273]
[1721334493930,1.58877004,157.39,157.35,0.3273]
[1721334494101,12.4,157.37,157.35,0.3273]
[1721334494797,1.58877004,157.39,157.35,0.3273]
[1721334495207,12.4,157.37,157.35,0.3273]
[1721334498607,0.100001,157.61,157.39,0.3273]
[1721334498608,1.58863601,157.42,157.39,0.3273]
[1721334498816,12.4,157.41,157.39,0.3273]
[1721334500291,1.58830121,157.47,157.41,0.3273]
[1721334500519,12.4,157.44,157.41,0.3273]
[1721334502320,1.58810248,157.45,157.41,0.3273]
[1721334502520,15.0885,157.48,157.43,0.3273]
[1721334502521,1.58799871,157.46,157.43,0.3273]
[1721334502713,13.98796379,157.45,157.43,0.3273]
[1721334502917,12.4,157.45,157.4,13.0673]
[1721334503132,13.98796379,157.44,157.4,0.6673]
[1721334503305,12.4,157.44,157.4,45.6673]
[1721334503696,12.4,157.44,157.42,0.3273]
[1721334504526,12.4,157.44,157.4,0.6673]
[1721334504912,1.58805599,157.45,157.42,0.3273]
[1721334505113,12.4,157.44,157.4,0.6673]
[1721334506225,12.4,157.43,157.4,0.6673]
[1721334507729,12.4,157.43,157.42,0.3273]
[1721334508049,1.58805599,157.46,157.42,0.3273]
[1721334508202,1.58771114,157.48,157.45,0.3273]
[1721334508407,12.4,157.49,157.45,0.3273]
[1721334508635,13.98756012,157.48,157.45,0.3273]
[1721334508925,12.4,157.46,157.43,0.6673]
[1721334509101,12.4,157.46,157.43,0.4973]
[1721334509306,12.4,157.44,157.41,0.3273]
[1721334509524,12.4,157.44,157.39,66.9322882]
[1721334509525,12.4,157.44,157.39,67.26014219]
[1721334509712,12.4,157.44,157.4,0.34]
[1721334510109,12.4,157.43,157.4,0.17]
[1721334510819,12.4,157.44,157.41,0.3273]
[1721334511031,12.4,157.45,157.41,0.3273]
[1721334511412,12.4,157.45,157.42,0.17]
[1721334513926,1.58797487,157.44,157.42,0.17]
[1721334514131,13.98797487,157.44,157.41,0.3273]
[1721334514303,12.4,157.44,157.41,0.3273]
[1721334515621,12.4,157.45,157.41,0.3273]
[1721334515926,12.4,157.45,157.41,1.59771855]
[1721334516927,1.58802032,157.44,157.41,1.59771855]
[1721334517137,1.58802032,157.44,157.41,0.3273]
[1721334517339,13.98802032,157.44,157.41,0.3273]
[1721334517520,12.4,157.44,157.41,0.3273]
[1721334519014,12.4,157.45,157.41,0.3273]
[1721334519233,1.58802206,157.44,157.41,0.3273]
[1721334520167,13.98802206,157.44,157.41,0.3273]
[1721334520452,12.4,157.44,157.41,0.3273]
[1721334523355,12.4,157.43,157.41,0.3273]
[1721334525259,12.4,157.44,157.41,0.3273]
[1721334525446,1.58805055,157.47,157.41,0.3273]
[1721334525447,1.58805055,157.47,157.44,0.3273]
[1721334525650,12.4,157.46,157.44,0.3273]
[1721334526844,12.4,157.47,157.44,0.3273]
[1721334528037,1.58776095,157.49,157.45,0.17]
[1721334528352,12.4,157.49,157.45,0.17]
[1721334528562,13.98766628,157.48,157.45,0.17]
[1721334528730,12.4,157.48,157.45,0.17]
[1721334530839,13.98766675,157.47,157.44,0.3273]
[1721334531044,13.98778635,157.46,157.44,0.3273]
[1721334531239,12.4,157.46,157.44,0.3273]
[1721334534660,13.98777864,157.45,157.41,6.4885]
[1721334534861,1.58793852,157.47,157.42,0.34]
[1721334535167,12.4,157.45,157.42,0.34]
[1721334536461,1.5879854,157.44,157.42,0.17]
[1721334536667,12.4,157.43,157.39,45.3273]
[1721334536848,12.4,157.4,157.37,9.85587908]
[1721334537056,12.4,157.39,157.37,0.3273]
[1721334539169,12.4,157.4,157.37,0.3273]
[1721334540057,12.4,157.39,157.37,0.3273]
[1721334541363,12.4,157.39,157.36,0.34]
[1721334546368,13.9884836,157.38,157.36,0.34]
[1721334546550,12.4,157.38,157.36,0.17]
[1721334547544,13.98862976,157.37,157.35,9.53015959]
[1721334547845,12.4,157.37,157.35,9.53015959]
[1721334548537,12.4,157.37,157.34,9.70015959]
[1721334548856,12.4,157.37,157.35,0.17]
[1721334549947,13.98872795,157.36,157.33,16.7835]
[1721334550147,12.4,157.36,157.33,16.7835]
[1721334550750,12.4,157.36,157.33,16.6135]
[1721334551077,12.4,157.34,157.3,9.53015959]
[1721334551368,1.58890446,157.35,157.3,9.53015959]